bitfinex-derivatives/quotes_ETHF0:USTF0_20260121
["timestamp","ask_amount","ask_price","bid_price","bid_amount"]
[1768994616366,0.31671844,2970.2,2969.3,0.00345272]
[1768994617462,0.31671844,2970.2,2969.5,0.00336636]
[1768994619461,0.00504948,2970.8,2969.5,0.00336636]
[1768994619854,0.16852,2970.2,2969.5,0.00336636]
[1768994620056,0.00504948,2970.8,2969.5,0.00336636]
[1768994621267,0.14820844,2970.7,2969.5,0.00336636]
[1768994621467,0.16852,2970.2,2969.5,0.00336636]
[1768994621668,0.14820844,2970.7,2969.5,0.00336636]
[1768994622469,0.16852,2970.2,2969.5,0.00336636]
[1768994639384,0.16852,2970.2,2969.5,3.04515989]
[1768994641487,0.14344091,2970.1,2969.5,3.04515989]
[1768994641690,0.16852,2970.2,2969.5,0.00336636]
[1768994651197,0.14344091,2970.5,2969.5,0.00336636]
[1768994651396,0.16849,2970.7,2969.6,3.04179353]
[1768994651597,0.16849,2970.7,2969.5,0.00336636]
[1768994651598,0.16849,2970.7,2969.7,3.04179353]
[1768994652104,0.00504948,2970.8,2969.8,3.04179353]
[1768994652304,0.00317522,2971.4,2970.0,0.13755081]
[1768994652602,0.16846,2971.1,2970.0,0.13755081]
[1768994653499,0.00504948,2970.8,2970.0,0.13755081]
[1768994653700,0.16846,2971.1,2970.0,0.13755081]
[1768994654094,0.16846,2971.1,2970.0,3.17934434]
[1768994654296,0.16846,2971.1,2970.1,1.24741141]
[1768994654495,0.16846,2971.1,2970.1,4.28920494]
[1768994654898,0.00504948,2970.9,2970.1,4.28920494]
[1768994656809,0.00504948,2970.9,2970.1,3.17934434]
[1768994657099,0.00504948,2970.9,2970.1,0.13755081]
[1768994657500,0.00504948,2970.9,2970.0,3.04179353]
[1768994659508,0.00504948,2970.9,2969.9,5.98177317]
[1768994661608,0.00504948,2970.9,2969.9,2.93997964]
[1768994668111,0.00504948,2970.9,2970.0,0.14597964]
[1768994672917,0.00504948,2970.9,2970.2,1.10935064]
[1768994675610,0.17351948,2970.9,2970.0,0.14597964]
[1768994678920,0.17351948,2970.9,2970.0,3.18777317]
[1768994681520,0.17351948,2970.9,2970.1,3.04179353]
[1768994683229,0.17351948,2970.9,2970.2,3.04179353]
[1768994684730,0.17351948,2970.9,2970.2,4.15114417]
[1768994702944,0.17351948,2970.9,2970.2,3.04179353]
[1768994703142,0.16848,2970.8,2970.2,3.04179353]
[1768994703948,0.16848,2970.8,2970.1,3.04179353]
[1768994706647,1.10935064,2970.7,2970.1,2.67693353]
[1768994706847,1.10935064,2970.7,2969.9,4.25851094]
[1768994707051,1.10935064,2970.7,2969.5,4.131717]
[1768994707649,0.16851,2970.3,2969.5,4.131717]
[1768994709650,0.00504948,2970.9,2969.8,1.10935064]
[1768994709843,0.00504948,2970.9,2970.1,1.10935064]
[1768994710248,0.17351948,2970.9,2970.1,1.10935064]
[1768994719256,0.16845,2971.3,2970.6,1.10935064]
[1768994727563,0.16845,2971.2,2970.6,1.10935064]
[1768994729466,0.10819376,2971.2,2970.6,1.10935064]
[1768994731272,0.16099027,2971.8,2970.6,1.10935064]
[1768994731273,0.16843,2971.7,2971.1,1.10935064]
[1768994731764,0.16843,2971.7,2970.9,1.10935064]
[1768994732071,0.16843,2971.6,2970.9,1.10935064]
[1768994732271,0.16843,2971.6,2971.0,0.00504948]
[1768994732468,0.16844,2971.4,2971.0,0.00504948]
[1768994732663,0.16845,2971.3,2971.0,0.00504948]
[1768994734070,0.16845,2971.3,2970.4,6.08110891]
[1768994734269,0.16845,2971.3,2970.4,3.055]
[1768994735271,0.16845,2971.3,2970.6,0.00504948]
[1768994740767,0.16846,2971.1,2970.6,0.00504948]
[1768994750978,0.3455598,2971.1,2970.6,0.00504948]
[1768994751791,0.16847,2970.9,2970.0,3.02610891]
[1768994752084,0.16848,2970.8,2970.0,3.02610891]
[1768994752273,0.16848,2970.8,2969.9,3.02610891]
[1768994752881,0.16848,2970.8,2970.1,0.00504948]
[1768994776898,0.36024781,2970.8,2970.1,0.00504948]
[1768994781599,0.36024781,2970.8,2970.1,3.03115839]
[1768994787204,0.36024781,2970.8,2970.1,0.00504948]
[1768994787407,0.36024781,2970.8,2970.1,3.03115839]
[1768994792415,0.16848,2970.8,2970.1,3.03115839]
[1768994794913,0.16848,2970.8,2970.1,4.14066649]
[1768994808530,0.16846,2971.1,2970.1,4.14066649]
[1768994809532,0.16847,2970.9,2970.1,4.14066649]
[1768994813437,0.16847,2970.9,2970.1,4.14066649]
[1768994830536,0.16847,2970.9,2970.1,1.11455758]
[1768994831744,0.16847,2970.9,2970.1,4.14066649]
[1768994831943,0.16847,2970.9,2970.1,1.11455758]
[1768994832140,0.16848,2970.7,2970.1,0.00504948]
[1768994837452,0.16849,2970.6,2970.1,0.00504948]
[1768994837654,0.1685,2970.5,2970.1,0.00504948]
[1768994837849,0.1685,2970.4,2969.6,3.02610891]
[1768994840049,0.1685,2970.4,2969.6,4.13561701]
[1768994840351,0.1685,2970.4,2969.6,1.1095081]
[1768994847656,0.16852,2970.1,2969.3,1.11296082]
[1768994849557,0.16852,2970.0,2969.3,1.11296082]
[1768994851261,0.16852,2970.0,2969.3,0.00345272]
[1768994851456,1.21992,2970.0,2969.3,0.00345272]
[1768994853262,1.21992,2970.0,2969.3,1.11296082]
[1768994854867,1.21992,2970.0,2969.3,0.00345272]
[1768994858463,0.16855,2969.6,2969.3,0.00345272]
[1768994858766,0.16855,2969.6,2968.7,7.28140201]
[1768994859070,0.16855,2969.6,2968.9,0.00504948]
[1768994859768,0.17166626,2969.6,2968.9,0.0093736]
[1768994865265,0.00311626,2969.6,2968.9,0.0093736]
[1768994865471,0.16852,2970.1,2968.9,1.32839778]
[1768994866367,0.17182032,2970.1,2968.9,1.32839778]
[1768994866562,0.00504948,2969.8,2968.9,1.32839778]
[1768994866762,0.17182032,2970.1,2968.9,1.32839778]
[1768994868178,0.6989,2970.0,2968.9,1.32839778]
[1768994868673,0.8994679,2970.0,2968.9,0.0093736]
[1768994869072,0.00504948,2969.7,2968.9,0.0093736]
[1768994877482,0.21149786,2969.7,2968.9,0.0093736]
[1768994878692,0.21149786,2969.7,2968.9,3.03226467]
[1768994879985,0.00504948,2969.7,2968.9,3.03226467]
[1768994882684,0.37498838,2969.6,2968.9,0.0093736]
[1768994885296,0.00504948,2969.7,2968.9,0.0093736]
[1768994885594,0.6989,2970.0,2968.9,0.0093736]
[1768994888496,0.00504948,2969.7,2968.9,0.0093736]
[1768994888698,0.16851,2970.2,2969.2,1.1101691]
[1768994888892,0.20644838,2970.4,2969.2,1.1101691]
[1768994889292,0.16851,2970.2,2969.2,1.1101691]
[1768994889487,0.20644838,2970.4,2969.2,1.1101691]
[1768994889799,0.20947514,2970.4,2969.2,1.1101691]
[1768994890603,0.16851,2970.2,2969.2,1.1101691]
[1768994891304,0.16851,2970.2,2969.0,6.48589107]
[1768994892802,0.16851,2970.2,2969.2,3.02289107]
[1768994893706,0.20644838,2970.1,2969.1,3.02289107]
[1768994894093,0.16851,2970.2,2969.1,3.02289107]
[1768994894504,0.16851,2970.2,2969.1,3.22746416]
[1768994894702,0.00302676,2970.4,2969.3,3.02289107]
[1768994896298,0.00302676,2970.4,2969.2,4.33763326]
[1768994906617,0.00504948,2970.1,2969.2,4.33763326]
[1768994906910,0.00302676,2970.4,2969.2,4.33763326]
[1768994908210,0.00302676,2970.4,2969.3,0.20989085]
[1768994910714,0.1685,2970.5,2969.3,0.20989085]
[1768994911715,0.17236402,2970.5,2969.3,0.20989085]
[1768994913515,0.17236402,2970.5,2969.3,3.23278192]
[1768994914919,0.17236402,2970.5,2969.9,1.1096669]
[1768994919219,0.19557382,2971.0,2970.1,1.1096669]
[1768994919423,0.19557382,2971.2,2970.1,1.1096669]
[1768994919612,0.16847,2971.0,2970.1,1.1096669]
[1768994919812,0.16847,2971.0,2970.4,0.00504948]
[1768994920312,0.36404382,2970.9,2970.4,0.00504948]
[1768994920618,0.36759872,2970.9,2970.4,0.00504948]
[1768994920819,0.16848,2970.7,2970.4,0.00504948]
[1768994921721,0.36405382,2970.7,2970.4,9.48e-06]
[1768994921919,0.16849,2970.6,2969.7,1.1096669]
[1768994922924,0.16849,2970.6,2969.9,0.00504948]
[1768994924624,0.1685,2970.5,2969.9,0.00504948]
[1768994924814,0.1685,2970.4,2969.9,0.00504948]
[1768994925014,0.1685,2970.3,2969.6,3.02289107]
[1768994925211,0.1685,2970.3,2969.4,3.02289107]
[1768994926325,0.16851,2970.2,2969.6,0.00504948]
[1768994926526,0.17355948,2970.2,2969.6,0.00504948]
[1768994929230,0.16852,2970.1,2969.6,0.00504948]
[1768994935035,0.37171712,2970.1,2969.6,0.00504948]
[1768994935237,0.16852,2970.0,2969.5,1.1096669]
[1768994935433,0.16852,2970.0,2969.2,4.13255797]
[1768994936133,0.16852,2970.0,2969.5,1.1096669]
[1768994938034,0.16852,2970.0,2969.3,1.11471638]
[1768994940851,0.16853,2969.9,2969.3,1.11471638]
[1768994943745,0.16853,2969.9,2969.3,0.00504948]
[1768994945450,0.16853,2969.8,2969.3,0.00504948]
[1768994958460,0.37734099,2969.8,2969.3,0.00504948]
[1768994965158,0.20881099,2969.7,2969.3,0.00504948]
[1768994965462,0.20881099,2969.7,2969.2,1.1096669]
[1768994965764,0.20881099,2969.7,2969.0,3.02289107]
[1768994973361,0.16853,2969.8,2969.0,3.02289107]
[1768994975870,0.16854,2969.7,2969.0,3.02289107]
[1768994976366,0.16855,2969.6,2968.9,3.02721519]
[1768994976571,0.16855,2969.5,2968.9,0.00432412]
[1768994979175,0.37737099,2969.4,2968.9,0.00432412]
[1768994979371,0.20881099,2969.3,2968.5,3.02289107]
[1768994979671,0.20881099,2969.3,2968.4,3.02289107]
[1768994980367,0.20881099,2969.3,2968.4,3.02610915]
[1768994980673,0.16856,2969.4,2968.4,3.02610915]
[1768994986971,0.21821413,2970.2,2968.6,1.30619629]
[1768994987275,0.16853,2969.8,2968.6,1.30619629]
[1768994991681,0.21821413,2970.2,2968.8,0.19561842]
[1768994992582,0.16853,2969.8,2968.8,3.21850949]
[1768994992782,0.21821413,2970.2,2968.8,3.21850949]
[1768994992982,0.21316465,2970.6,2969.4,1.11057787]
[1768994994479,0.16851,2970.3,2969.4,1.11057787]
[1768994994886,0.00504948,2970.1,2969.4,1.11057787]
[1768994995081,0.16851,2970.3,2969.4,1.11057787]
[1768994999385,0.16851,2970.2,2969.4,1.11057787]
[1768994999886,0.16852,2970.1,2969.1,0.19561842]
[1768995000094,0.16852,2970.1,2969.0,4.13851842]
[1768995000391,0.16852,2970.0,2969.0,1.11562735]
[1768995000789,0.16852,2970.0,2969.0,4.13851842]
[1768995000987,0.21596611,2970.3,2969.0,4.13851842]
[1768995001189,0.1685,2970.4,2969.1,0.20444754]
[1768995001490,0.16851,2970.3,2969.1,0.20444754]
[1768995002685,0.16852,2970.2,2969.1,0.20444754]
[1768995002892,0.16852,2970.1,2969.1,0.20444754]
[1768995003092,0.16852,2970.0,2969.0,4.13851842]
[1768995003502,0.00504948,2969.8,2969.0,4.13851842]
[1768995003996,0.16852,2970.0,2969.0,4.13851842]
[1768995007500,0.16852,2970.0,2969.0,1.11562735]
[1768995008301,0.16852,2970.0,2969.0,4.13851842]
[1768995008496,0.16852,2970.0,2969.0,1.11562735]
[1768995008796,0.21596611,2970.6,2969.4,1.11057787]
[1768995009002,0.1685,2970.4,2969.4,1.11057787]
[1768995010804,0.00504948,2970.2,2969.4,1.11057787]
[1768995015899,0.00504948,2970.2,2969.1,0.20444754]
[1768995016196,0.17355948,2970.2,2969.1,0.20444754]
[1768995017207,0.17355948,2970.2,2969.1,3.22733861]
[1768995017700,0.16852,2970.1,2969.1,3.22733861]
[1768995017909,0.16852,2970.1,2969.1,3.02289107]
[1768995018204,0.16852,2970.1,2969.0,3.22939785]
[1768995018400,0.16852,2970.1,2969.1,3.02289107]
[1768995021608,0.16852,2970.1,2969.2,3.02289107]
[1768995032617,0.16852,2970.1,2969.3,0.2014573]
[1768995032914,0.00504948,2970.2,2969.3,0.2014573]
[1768995033117,0.20780991,2970.6,2969.3,3.22434837]
[1768995034621,0.16852,2970.1,2969.3,3.22434837]
[1768995034812,0.20780991,2970.6,2969.3,3.22434837]
[1768995035524,0.16852,2970.1,2969.3,3.22434837]
[1768995035819,0.20780991,2970.6,2969.3,3.22434837]
[1768995036418,0.16852,2970.1,2969.3,3.22434837]
[1768995036618,0.20780991,2970.6,2969.3,3.22434837]
[1768995036816,0.16849,2970.6,2969.4,1.31203517]
[1768995037119,0.16849,2970.6,2970.1,1.10951222]
[1768995038323,0.16849,2970.6,2969.4,3.02289107]
[1768995038324,0.16849,2970.6,2970.4,1.10951222]
[1768995038522,0.0035549,2970.9,2970.4,1.10951222]
[1768995039124,0.0035549,2970.9,2970.2,1.10951222]
[1768995039619,0.16849,2970.6,2970.2,1.10951222]
[1768995039921,0.0035549,2970.9,2970.2,1.10951222]
[1768995040524,0.16849,2970.6,2970.2,1.10951222]
[1768995041025,0.0035549,2970.9,2970.2,1.10951222]
[1768995042522,0.16849,2970.6,2970.2,1.10951222]
[1768995042722,0.0035549,2970.9,2970.2,1.10951222]
[1768995043523,0.16849,2970.6,2970.2,1.10951222]
[1768995043924,0.0035549,2970.9,2970.2,1.10951222]
[1768995044527,0.16849,2970.6,2970.2,1.10951222]
[1768995044824,0.0035549,2970.9,2970.2,1.10951222]
[1768995045722,0.16849,2970.6,2970.2,1.10951222]
[1768995046028,0.0035549,2970.9,2970.2,1.10951222]
[1768995046223,0.16849,2970.6,2970.2,1.10951222]
[1768995046424,0.0035549,2970.9,2970.2,1.10951222]
[1768995047528,0.16849,2970.6,2970.2,1.10951222]
[1768995047824,0.0035549,2970.9,2970.2,1.10951222]
[1768995048529,0.16849,2970.6,2970.2,1.10951222]
[1768995049121,0.0035549,2970.9,2970.2,1.10951222]
[1768995049529,0.16849,2970.6,2970.2,1.10951222]
[1768995049830,0.0035549,2970.9,2970.2,1.10951222]
[1768995050531,0.16849,2970.6,2970.2,1.10951222]
[1768995050722,0.0035549,2970.9,2970.2,1.10951222]
[1768995051532,0.16849,2970.6,2970.2,1.10951222]
[1768995051839,0.0035549,2970.9,2970.2,1.10951222]
[1768995052531,0.16849,2970.6,2970.2,1.10951222]
[1768995052826,0.0035549,2970.9,2970.2,1.10951222]
[1768995053529,0.16849,2970.6,2970.2,1.10951222]
[1768995053832,0.0035549,2970.9,2970.2,1.10951222]
[1768995054530,0.16849,2970.6,2970.2,1.10951222]
[1768995054829,0.0035549,2970.9,2970.2,1.10951222]
[1768995055533,0.16849,2970.6,2970.2,1.10951222]
[1768995055828,0.0035549,2970.9,2970.2,1.10951222]
[1768995056535,0.16849,2970.6,2970.2,1.10951222]
[1768995056734,0.0035549,2970.9,2970.2,1.10951222]
[1768995057631,0.16849,2970.6,2970.2,1.10951222]
[1768995058634,0.16849,2970.6,2970.0,1.10951222]
[1768995061435,0.0035549,2970.9,2970.2,1.10951222]
[1768995061629,0.0035549,2970.9,2970.4,1.10951222]
[1768995066434,0.16847,2971.0,2970.4,1.10951222]
[1768995067331,0.1727594,2971.0,2970.4,1.10951222]
[1768995076439,0.2129481,2971.7,2970.8,1.10951222]
[1768995076741,0.16845,2971.3,2970.8,1.10951222]
[1768995076941,0.16845,2971.3,2971.0,0.00504948]
[1768995077243,0.16845,2971.3,2970.4,3.02289107]
[1768995077244,0.16846,2971.2,2970.4,4.13240329]
[1768995077443,0.16846,2971.1,2970.4,1.11291938]
[1768995078543,0.16846,2971.1,2970.5,0.00504948]
[1768995078842,0.17350948,2971.1,2970.5,0.00504948]
[1768995079939,0.17350948,2971.1,2970.6,1.10951222]
[1768995083138,0.17350948,2971.1,2970.5,0.00504948]
[1768995092950,0.2129481,2970.9,2970.2,3.02289107]
[1768995093251,0.3814281,2970.8,2969.8,7.28140201]
[1768995093452,0.3814281,2970.8,2969.8,3.02289107]
[1768995094049,0.3814281,2970.8,2969.8,3.02532636]
[1768995094253,0.3814281,2970.8,2970.0,0.00504948]
[1768995094950,0.2129481,2970.4,2970.0,0.00504948]
[1768995095254,0.2129481,2970.4,2969.8,0.00243529]
[1768995096260,0.2129481,2970.4,2969.8,0.00748477]
[1768995098358,0.16849,2970.5,2969.8,0.00748477]
[1768995101059,0.21799758,2971.1,2969.8,0.00748477]
[1768995101257,0.38645758,2971.1,2969.8,0.00748477]
[1768995102956,0.16847,2971.0,2969.8,0.00748477]
[1768995107460,0.3916558,2971.0,2969.8,0.00748477]
[1768995111564,0.2231858,2970.9,2969.8,0.00748477]
[1768995114571,0.2231858,2970.8,2969.8,0.00748477]
[1768995118873,0.3916658,2970.8,2969.8,0.00748477]
[1768995119065,0.22883669,2970.7,2969.8,0.00748477]
[1768995122479,0.22883669,2970.7,2969.8,3.03037584]
[1768995143099,0.22273741,2970.6,2969.8,3.03037584]
[1768995143288,0.22273741,2970.5,2969.8,3.03037584]
[1768995143595,0.22273741,2970.5,2969.8,0.00748477]
[1768995144995,0.39122741,2970.5,2969.8,0.00748477]
[1768995145299,0.22273741,2970.1,2969.5,4.25851094]
[1768995145496,0.22273741,2969.9,2969.1,3.02289107]
[1768995146393,0.22273741,2969.9,2969.1,0.00366287]
[1768995146894,0.22273741,2969.9,2969.2,0.00504948]
[1768995149892,0.22273741,2969.6,2969.2,0.00504948]
[1768995150199,0.22273741,2969.3,2968.3,3.02289107]
[1768995150994,0.22273741,2969.3,2968.3,3.02680301]
[1768995151192,0.00504948,2969.1,2968.3,3.02680301]
[1768995151487,0.00923208,2969.1,2968.3,3.02680301]
[1768995151696,0.16856,2969.3,2968.3,3.02680301]
[1768995151899,0.22273741,2970.1,2968.6,1.10972485]
[1768995152092,0.16853,2969.9,2968.6,1.10972485]
[1768995152399,0.22273741,2970.1,2969.0,1.10972485]
[1768995152593,1.81567464,2971.2,2969.1,0.22834247]
[1768995152793,0.16851,2970.2,2969.1,0.22834247]
[1768995153597,0.16852,2970.0,2969.0,1.873]
[1768995153797,0.00504948,2970.4,2968.8,3.02289107]
[1768995153994,0.00504948,2970.4,2968.7,3.25123354]
[1768995154395,0.00504948,2970.4,2968.7,3.02289107]
[1768995154594,0.16854,2969.8,2968.6,4.13261592]
[1768995154800,0.22273741,2970.3,2968.6,3.02289107]
[1768995155001,0.16855,2969.6,2968.5,3.02289107]
[1768995155300,0.16855,2969.6,2968.4,3.02289107]
[1768995155500,0.16855,2969.6,2968.3,7.12214548]
[1768995156305,0.16855,2969.6,2968.3,4.09925441]
[1768995157103,0.16855,2969.6,2968.3,7.12214548]
[1768995157402,0.16855,2969.6,2968.3,4.09925441]
[1768995158907,0.16855,2969.6,2968.9,1.11042017]
[1768995164008,0.22273741,2970.3,2969.2,1.11042017]
[1768995164512,0.16853,2969.9,2969.2,1.11042017]
[1768995164713,0.16853,2969.9,2969.3,0.00504948]
[1768995165210,0.16853,2969.8,2969.3,0.00504948]
[1768995165406,0.22273741,2970.3,2969.3,0.00504948]
[1768995166603,0.16854,2969.7,2969.3,0.00504948]
[1768995167007,0.16855,2969.6,2969.3,0.00504948]
[1768995167716,0.16855,2969.6,2968.9,1.11042017]
[1768995168818,0.16855,2969.5,2968.6,1.11042017]
[1768995173322,0.16855,2969.5,2968.8,0.00504948]
[1768995178929,0.16855,2969.5,2968.8,1.11546965]
[1768995182928,0.16853,2969.9,2969.4,1.11042017]
[1768995183120,0.00504948,2970.4,2969.4,1.11042017]
[1768995183326,0.17354948,2970.4,2969.6,1.11042017]
[1768995183527,0.17354948,2970.4,2968.9,1.11042017]
[1768995183528,0.17354948,2970.4,2969.8,1.11042017]
[1768995183730,0.16848,2970.8,2969.8,1.11042017]
[1768995183930,0.1685,2970.5,2969.4,3.27849225]
[1768995184235,0.1685,2970.5,2969.5,1.11042017]
[1768995184828,0.00504948,2970.3,2969.5,1.11042017]
[1768995189430,0.17355948,2970.3,2969.5,1.11042017]
[1768995190639,0.16851,2970.2,2969.3,1.11042017]
[1768995192139,0.16851,2970.2,2969.6,1.11042017]
[1768995200143,0.00504948,2970.3,2969.6,1.11042017]
[1768995201446,0.16851,2970.2,2969.6,1.11042017]
[1768995201950,0.00504948,2970.3,2969.6,1.11042017]
[1768995203646,0.16851,2970.2,2969.6,1.11042017]
[1768995203952,0.00504948,2970.3,2969.6,1.11042017]
[1768995204455,0.26810384,2971.2,2969.7,0.25190696]
[1768995204750,0.16848,2970.7,2969.9,1.11042017]
[1768995205741,0.00255828,2971.2,2970.4,1.11042017]
[1768995205941,0.17100828,2971.2,2970.4,1.1147632]
[1768995206649,0.17100828,2971.2,2970.6,1.11042017]
[1768995206849,0.17605776,2971.2,2970.6,1.11546965]
[1768995208447,0.16846,2971.1,2970.6,0.00504948]
[1768995210754,0.16847,2971.0,2970.6,0.00504948]
[1768995222166,0.43401556,2971.0,2970.6,0.00504948]
[1768995222768,0.16847,2971.0,2970.6,0.00504948]
[1768995224870,0.16847,2971.0,2970.4,0.00434303]
[1768995226074,0.16847,2971.0,2970.4,0.00939251]
[1768995236978,0.16848,2970.8,2970.2,3.02289107]
[1768995237286,0.16848,2970.8,2970.0,3.02289107]
[1768995237287,0.44994928,2970.8,2970.0,3.02289107]
[1768995237782,0.44994928,2970.8,2969.9,3.02289107]
[1768995237988,0.44994928,2970.8,2969.9,3.02614158]
[1768995240087,0.26985457,2971.2,2969.9,3.02614158]
[1768995240386,0.26985457,2971.2,2970.0,3.02289107]
[1768995240783,0.00760776,2971.2,2970.0,3.29076273]
[1768995240984,0.00760776,2971.2,2970.0,0.26787166]
[1768995241381,0.16848,2970.8,2970.0,0.26787166]
[1768995241576,0.00760776,2971.2,2970.0,0.26787166]
[1768995241784,0.26985457,2971.2,2969.9,3.02614158]
[1768995242489,0.16848,2970.8,2969.9,3.02614158]
[1768995242878,0.26224681,2970.7,2969.9,0.00325051]
[1768995243083,0.26224681,2970.3,2969.9,0.00325051]
[1768995243287,0.26224681,2970.3,2969.4,6.10389107]
[1768995243592,0.26224681,2970.3,2969.4,3.02289107]
[1768995243790,0.26224681,2970.3,2969.3,3.02289107]
[1768995243990,0.26224681,2970.3,2969.5,0.00504948]
[1768995244395,0.43075681,2970.3,2969.5,0.00747368]
[1768995245091,0.16851,2970.3,2969.5,0.00747368]
[1768995246195,0.26224681,2970.2,2969.5,0.00747368]
[1768995246390,0.26224681,2970.1,2969.5,0.00747368]
[1768995246793,0.43077681,2970.0,2969.1,3.02289107]
[1768995246996,0.16853,2969.9,2968.9,3.02289107]
[1768995247494,0.16853,2969.9,2968.8,3.905]
[1768995247896,0.26224681,2970.0,2968.8,0.00280751]
[1768995248090,0.00504948,2969.6,2968.8,0.00280751]
[1768995249501,0.16855,2969.5,2968.8,0.00280751]
[1768995251498,0.00504948,2969.6,2968.8,0.00280751]
[1768995251700,0.16853,2969.9,2968.8,0.00280751]
[1768995252802,0.00504948,2969.6,2968.8,0.00280751]
[1768995256703,0.16849,2970.5,2969.5,1.10938667]
[1768995257002,0.2778809,2971.0,2969.5,1.10938667]
[1768995258505,0.16849,2970.5,2969.5,1.10938667]
[1768995272304,0.16849,2970.5,2969.2,3.3007738]
[1768995273220,0.2778809,2970.7,2969.2,3.3007738]
[1768995274519,0.16851,2970.3,2969.2,3.3007738]
[1768995275515,0.16851,2970.3,2969.2,0.27788273]
[1768995275711,0.16851,2970.3,2969.2,3.3007738]
[1768995276621,0.16851,2970.3,2969.2,0.27788273]
[1768995277517,0.16851,2970.3,2969.2,3.3007738]
[1768995277919,0.16851,2970.3,2969.2,0.27788273]
[1768995278420,0.16851,2970.3,2969.2,3.3007738]
[1768995278923,0.16851,2970.3,2969.5,1.10996496]
[1768995286526,0.16851,2970.3,2969.5,4.13285603]
[1768995289429,0.00504948,2970.2,2969.5,4.13285603]
[1768995290033,0.00504948,2970.2,2969.5,1.10996496]
[1768995292430,0.00504948,2970.2,2969.4,3.02289107]
[1768995292631,0.29175247,2970.2,2969.1,3.02289107]
[1768995292933,0.16854,2969.8,2969.1,3.02289107]
[1768995293227,0.16854,2969.8,2968.9,4.13790551]
[1768995294633,0.16854,2969.8,2969.2,1.10996496]
[1768995301631,0.29175247,2970.2,2968.9,0.00504948]
[1768995301632,0.29175247,2970.2,2968.9,1.11501444]
[1768995301935,0.16855,2969.5,2968.9,0.00504948]
[1768995305034,0.16856,2969.4,2968.9,0.00504948]
[1768995305534,0.16856,2969.3,2968.9,0.00504948]
[1768995305738,0.16856,2969.3,2968.8,0.00280751]
[1768995305939,0.45009605,2969.3,2968.8,0.00280751]
[1768995306140,0.45009605,2969.3,2968.3,1.10996496]
[1768995306339,0.16857,2969.2,2968.3,1.10996496]
[1768995307142,0.16858,2969.0,2968.3,1.11284702]
[1768995307341,0.1713973,2969.0,2968.3,1.11284702]
[1768995316037,0.1713973,2969.0,2968.3,0.00288206]
[1768995316446,0.1713973,2969.0,2968.4,0.00504948]
[1768995316648,0.1713973,2969.0,2968.3,0.00288206]
[1768995318451,0.1713973,2969.0,2968.4,0.00504948]
[1768995323356,0.1713973,2969.0,2968.3,0.00288206]
[1768995324158,0.16859,2968.8,2968.3,0.00288206]
[1768995324351,0.16859,2968.8,2967.8,1.10996496]
[1768995324659,0.00504948,2968.6,2967.8,1.10996496]
[1768995324858,0.00504948,2968.6,2968.0,0.00336636]
[1768995325355,0.00504948,2968.6,2968.0,0.00734038]
[1768995326259,0.17364948,2968.6,2968.0,0.00734038]
[1768995329152,0.17364948,2968.6,2967.5,1.10996496]
[1768995330162,0.16861,2968.5,2967.5,1.11270074]
[1768995332161,0.29454115,2968.3,2967.5,0.00273578]
[1768995332554,1.11501444,2968.6,2967.5,0.00273578]
[1768995332758,1.40955559,2968.6,2967.5,0.00273578]
[1768995333456,0.16863,2968.2,2967.5,0.00273578]
[1768995347968,0.47358695,2968.1,2967.5,0.00273578]
[1768995349075,0.47358695,2968.1,2967.0,3.02289107]
[1768995349274,0.30495695,2968.1,2967.0,3.02289107]
[1768995349475,0.30495695,2968.1,2966.7,7.28140201]
[1768995349669,0.30495695,2968.1,2966.6,3.02289107]
[1768995349977,0.30495695,2968.1,2966.5,6.99489107]
[1768995350279,0.30495695,2968.1,2966.5,6.99829254]
[1768995350480,0.16865,2967.7,2966.5,6.99829254]
[1768995351683,0.16867,2967.4,2966.5,6.99829254]
[1768995351867,0.16867,2967.4,2966.5,3.97540147]
[1768995353777,0.16867,2967.4,2966.5,0.00340147]
[1768995354173,0.16868,2967.3,2966.5,0.00340147]
[1768995354380,0.30495695,2967.7,2966.5,0.00340147]
[1768995355278,0.47364695,2967.0,2966.5,0.00340147]
[1768995355473,0.47364695,2967.0,2965.9,7.00689107]
[1768995355673,0.47869643,2967.0,2965.9,3.984]
[1768995356483,0.47869643,2967.0,2965.9,3.98749874]
[1768995357384,0.47869643,2967.0,2965.9,0.00349874]
[1768995359679,0.17373948,2967.0,2965.9,0.28539826]
[1768995361282,0.16866,2967.6,2966.4,1.39343798]
[1768995361478,0.16866,2967.6,2966.5,0.28189952]
[1768995362384,0.00504948,2967.3,2966.8,0.00504948]
[1768995362584,0.16866,2967.6,2966.8,0.00504948]
[1768995363783,0.00504948,2967.5,2966.8,0.00504948]
[1768995372493,0.46971274,2968.2,2966.8,0.00504948]
[1768995373296,0.16863,2968.1,2966.8,0.00504948]
[1768995373490,0.00504948,2967.7,2966.8,0.00504948]
[1768995376490,0.31665533,2967.7,2966.8,0.00504948]
[1768995376799,0.31160585,2966.8,2965.9,0.00349874]
[1768995377000,0.31483051,2966.8,2965.9,0.00349874]
[1768995377801,0.00322466,2966.8,2966.1,0.00504948]
[1768995380706,0.31483051,2966.8,2966.1,0.00504948]
[1768995393413,0.16871,2966.7,2966.1,0.00504948]
[1768995393620,0.31160585,2966.4,2965.2,3.02289107]
[1768995393915,0.31160585,2966.3,2965.1,3.02289107]
[1768995394118,0.31160585,2966.3,2964.9,3.02289107]
[1768995394612,0.00504948,2965.9,2964.9,3.02548844]
[1768995395418,0.00504948,2965.9,2964.9,0.00259737]
[1768995396013,0.00504948,2965.9,2964.9,1.42195293]
[1768995396320,0.48031585,2966.7,2965.3,1.11153846]
[1768995396819,0.48031585,2966.7,2965.3,1.41935556]
[1768995397020,0.16871,2966.7,2965.4,0.3078171]
[1768995397219,0.00505833,2966.3,2965.8,0.00505833]
[1768995397421,0.16871,2966.7,2965.8,0.00505833]
[1768995398520,0.00505833,2966.5,2965.8,0.00505833]
[1768995400922,0.00505833,2966.5,2966.0,1.11257069]
[1768995401417,0.00322466,2966.8,2966.3,1.11257069]
[1768995402619,0.48028585,2967.2,2966.3,1.11257069]
[1768995402823,0.16868,2967.2,2966.6,1.11257069]
[1768995403431,0.17247249,2967.2,2966.6,1.11257069]
[1768995403724,0.17753082,2967.2,2966.6,1.11257069]
[1768995404728,0.17753082,2967.2,2966.4,1.11257069]
[1768995405628,0.28883714,2967.1,2966.4,1.11257069]
[1768995405922,0.17753082,2967.2,2966.4,1.11257069]
[1768995410329,0.16869,2967.1,2966.4,1.11257069]
[1768995418126,0.16869,2967.1,2966.7,1.11257069]
[1768995418333,0.00885082,2967.2,2966.7,1.11257069]
[1768995421340,0.00885082,2967.2,2966.4,1.11257069]
[1768995428542,0.00885082,2967.2,2966.7,1.11257069]
[1768995428740,0.16867,2967.4,2966.7,1.11257069]
[1768995429639,0.17295422,2967.4,2966.7,1.11257069]